fUSD/lending_fUSD_20260321
["ID","MTS","AMOUNT","RATE_DAILY","PERIOD"]
[408690150,1774125032662,-500.0,0.00014653,2]
[408690151,1774125032671,-2500.0,0.00014653,2]
[408690152,1774125032680,-300.0,0.00014653,2]
[408690153,1774125032690,-300.0,0.00014653,2]
[408690154,1774125032699,-300.0,0.00014653,2]
[408690155,1774125032709,-5000.0,0.00014653,2]
[408690156,1774125032719,-194.24944797,0.00014653,2]
[408690157,1774125032729,-250.0,0.00014653,2]
[408690158,1774125032739,-600.0,0.00014653,2]
[408690159,1774125032749,-600.0,0.00014653,2]
[408690160,1774125032758,-600.0,0.00014653,2]
[408690161,1774125032768,-1680.0,0.00014661,2]
[408690162,1774125032778,-161.0,0.0001472,2]
[408690163,1774125032787,-1568.0,0.0001472,2]
[408690164,1774125032797,-152.96986947,0.00014753,2]
[408690165,1774125032806,-774.16,0.00014753,2]
[408690166,1774125032815,-500.0,0.00014767,2]
[408690167,1774125032825,-3240.0,0.00014872,2]
[408690168,1774125032834,-254.63790297,0.00014959,2]
[408690169,1774125032843,-200.0,0.00014965,2]
[408690170,1774125032853,-2916.1278,0.00014968,2]
[408690171,1774125032862,-250.0,0.00015,2]
[408690172,1774125032872,-2063.43341919,0.00015,2]
[408690173,1774125032881,-8033.01427749,0.00015,2]
[408690174,1774125032891,-772.19402272,0.00015027,2]
[408690177,1774125037811,-1.96597728,0.00015027,2]
[408690178,1774125037821,-162.0,0.0001504,2]
[408690179,1774125037831,-160.0,0.0001507,2]
[408690180,1774125037841,-979.16666667,0.0001507,2]
[408690181,1774125037850,-160.0,0.0001507,2]
[408690182,1774125037860,-500.0,0.00015075,2]
[408690183,1774125037870,-1100.0,0.000151,5]
[408690184,1774125037879,-500.31068947,0.00015143,2]
[408690185,1774125037888,-500.0,0.00015143,2]
[408690186,1774125037898,-500.0,0.00015143,2]
[408690187,1774125037907,-500.0,0.00015143,2]
[408690188,1774125037917,-840.0,0.00015177,2]
[408690189,1774125037927,-5862.98401019,0.000152,2]
[408690190,1774125037938,-2247.09548688,0.000152,2]
[408690191,1774125037949,-564.0886184,0.000152,2]
[408690192,1774125037960,-3572.87009396,0.000152,2]
[408690193,1774125037972,-2093.68970089,0.000152,2]
[408690194,1774125037983,-638.55537377,0.000152,2]
[408690195,1774125037995,-7928.59547372,0.000152,2]
[408690196,1774125038005,-2300.0,0.000152,5]
[408690197,1774125038016,-154.42032795,0.00015206,2]
[408690198,1774125038028,-1963.19122019,0.00015207,2]
[408690199,1774125038040,-5061.89877981,0.00015207,2]
[408690200,1774125038050,-998.35793184,0.00015223,2]
[408690201,1774125038059,-2500.0,0.00015249,2]
[408690202,1774125038069,-1517.64,0.000153,2]
[408690203,1774125038078,-4.37783648,0.000153,5]
[408690204,1774125038089,-3307.40658349,0.000153,5]
[408690205,1774125038100,-188.21558003,0.000153,5]
[408690207,1774125038111,-774.16,0.00015301,2]
[408690209,1774125038120,-217.298829,0.00015347,7]
[408690211,1774125038130,-161.0,0.0001536,2]
[408690214,1774125038139,-201.34731239,0.0001536,2]
[408690216,1774125038152,-1366.65268761,0.0001536,2]
[408690218,1774125038163,-500.0,0.00015376,2]
[408690220,1774125038172,-216.89004797,0.00015384,2]
[408690222,1774125038183,-350.0,0.00015388,2]
[408690224,1774125038197,-161.0,0.00015395,2]
[408690226,1774125038207,-4700.0,0.000154,5]
[408690227,1774125038216,-511.61660219,0.000154,2]
[408690229,1774125038228,-249.394424,0.00015407,7]
[408690232,1774125038237,-284.925932,0.00015428,7]
[408690233,1774125038247,-160.0,0.00015428,7]
[408690235,1774125038256,-840.0,0.00015451,2]
[408690238,1774125038265,-443.21,0.00015454,2]
[408690239,1774125038274,-417.597672,0.00015484,7]
[408690242,1774125038283,-840.0,0.00015484,2]
[408690244,1774125038293,-505.43,0.0001549,3]
[408690246,1774125038302,-150.0,0.000155,2]
[408690248,1774125038311,-5900.0,0.000155,5]
[408690250,1774125038320,-1229.1270772,0.000155,2]
[408690252,1774125038329,-4000.0,0.00015507,2]
[408690254,1774125038338,-283.381117,0.00015512,7]
[408690255,1774125038348,-350.0,0.00015514,2]
[408690257,1774125038357,-237.82395824,0.00015515,2]
[408690259,1774125038366,-368.106743,0.00015523,7]
[408690261,1774125038375,-160.0,0.00015523,7]
[408690263,1774125038384,-160.0,0.00015523,7]
[408690265,1774125038394,-238.340639,0.00015523,7]
[408690267,1774125038403,-500.0,0.00015566,2]
[408690269,1774125038412,-500.0,0.00015566,2]
[408690271,1774125038421,-500.0,0.00015566,2]
[408690273,1774125038431,-500.0,0.00015566,2]
[408690276,1774125038440,-500.0,0.00015566,2]
[408690277,1774125038451,-500.0,0.00015566,2]
[408690279,1774125038460,-500.0,0.00015566,2]
[408690281,1774125038469,-500.0,0.00015566,2]
[408690283,1774125038479,-840.0,0.00015568,2]
[408690286,1774125038491,-336.93,0.00015572,3]
[408690287,1774125038502,-168.47,0.00015572,3]
[408690289,1774125038511,-774.16,0.00015575,2]
[408690292,1774125038520,-150.0,0.00015579,2]
[408690294,1774125038530,-500.0,0.00015584,2]
[408690296,1774125038540,-500.0,0.00015584,2]
[408690297,1774125038550,-500.0,0.00015584,2]
[408690300,1774125038559,-500.0,0.00015584,2]
[408690302,1774125038569,-500.0,0.00015584,2]
[408690304,1774125038578,-500.0,0.00015584,2]
[408690306,1774125038588,-500.0,0.00015584,2]
[408690308,1774125038597,-500.0,0.00015584,2]
[408690310,1774125038606,-443.80865686,0.00015584,2]
[408690311,1774125038615,-500.0,0.00015584,2]
[408690314,1774125038625,-500.0,0.00015584,2]
[408690316,1774125038634,-500.0,0.00015584,2]
[408690317,1774125038644,-500.0,0.00015584,2]
[408690320,1774125038653,-500.0,0.00015584,2]
[408690321,1774125038663,-500.0,0.00015584,2]
[408690323,1774125038673,-500.0,0.00015584,2]
[408690325,1774125038682,-500.0,0.00015584,2]
[408690327,1774125038691,-500.0,0.00015584,2]
[408690330,1774125038701,-500.0,0.00015584,2]
[408690331,1774125038710,-500.0,0.00015584,2]
[408690334,1774125038719,-500.0,0.00015584,2]
[408690335,1774125038729,-500.0,0.00015584,2]
[408690337,1774125038738,-500.0,0.00015584,2]
[408690340,1774125038748,-500.0,0.00015584,2]
[408690342,1774125038757,-500.0,0.00015584,2]
[408690344,1774125038766,-500.0,0.00015584,2]
[408690346,1774125038775,-500.0,0.00015584,2]
[408690348,1774125038784,-500.0,0.00015584,2]
[408690350,1774125038797,-500.0,0.00015584,2]
[408690352,1774125038806,-500.0,0.00015584,2]
[408690354,1774125038815,-500.0,0.00015584,2]
[408690356,1774125038824,-500.0,0.00015584,2]
[408690358,1774125038834,-500.0,0.00015584,2]
[408690360,1774125038843,-500.0,0.00015584,2]
[408690362,1774125038852,-500.0,0.00015584,2]
[408690364,1774125038862,-500.0,0.00015584,2]
[408690366,1774125038871,-300.0,0.00015584,2]
[408690368,1774125038880,-8387.88049216,0.00015595,2]
[408690370,1774125038893,-1568.0,0.000156,2]
[408690372,1774125038903,-1100.0,0.000156,5]
[408690374,1774125038911,-2860.84764955,0.00015613,2]
[408690376,1774125038921,-350.0,0.00015622,2]
[408690378,1774125038930,-433.0,0.00015634,2]
[408690380,1774125038938,-2860.84764955,0.00015661,2]
[408690382,1774125038947,-500.0,0.00015679,2]
[408690384,1774125038956,-500.0,0.00015679,2]
[408690386,1774125038965,-500.0,0.00015679,2]
[408690388,1774125038975,-2882.25551351,0.0001568,2]
[408690390,1774125038985,-2403.0,0.0001568,2]
[408690392,1774125038994,-161.0,0.0001568,2]
[408690394,1774125039003,-2403.0,0.0001568,2]
[408690396,1774125039012,-2782.0,0.000157,2]
[408690398,1774125039021,-1100.0,0.000157,5]
[408690400,1774125039030,-350.0,0.00015702,2]
[408690402,1774125039039,-2860.84764955,0.00015709,2]
[408690404,1774125039048,-16886.86981158,0.00015721,2]
[408690406,1774125039057,-16886.86981156,0.00015741,2]
[408690408,1774125039066,-350.0,0.00015754,2]
[408690410,1774125039077,-2860.84764955,0.00015756,2]
[408690412,1774125039086,-5615.34623397,0.00015761,2]
[408690415,1774125039248,-11271.52357759,0.00015761,2]
[408690416,1774125039258,-734.77600079,0.00015781,2]
[408690417,1774125039269,-16152.09381077,0.00015781,2]
[408690418,1774125039279,-853.9818,0.000158,2]
[408690419,1774125039288,-3532.0,0.000158,2]
[408690420,1774125039297,-1100.0,0.000158,5]
[408690421,1774125039306,-785.47700184,0.000158,2]
[408690422,1774125039315,-16886.86981156,0.00015801,2]
[408690423,1774125039324,-803.53615128,0.00015804,2]
[408690424,1774125039346,-2057.31149827,0.00015804,2]
[408690425,1774125039355,-441.64949295,0.00015806,2]
[408690426,1774125039366,-398.35050705,0.00015806,2]
[408690427,1774125039375,-1765.30990212,0.00015807,2]
[408690428,1774125040175,-489.56393694,0.00015807,2]
[408690429,1774125040185,-16886.86981156,0.0001582,2]
[408690430,1774125040197,-840.0,0.00015829,2]
[408690431,1774125040207,-20381.05199672,0.0001584,2]
[408690432,1774125040216,-58374.28750266,0.0001584,2]
[408690433,1774125040225,-16886.86981156,0.0001584,2]
[408690434,1774125040238,-840.0,0.00015843,2]
[408690435,1774125040247,-774.16,0.00015849,2]
[408690436,1774125040258,-2860.84764955,0.00015852,2]
[408690437,1774125040274,-16886.86981156,0.0001586,2]
[408690438,1774125040284,-350.0,0.0001586,2]
[408690439,1774125040293,-500.0,0.00015872,2]
[408690440,1774125040302,-16886.86981156,0.0001588,2]
[408690441,1774125040312,-2000.0,0.0001589,2]
[408690442,1774125040322,-153.7845791,0.00015894,5]
[408690443,1774125040332,-4000.0,0.00015895,2]
[408690444,1774125040342,-500.0,0.00015899,2]
[408690445,1774125040351,-500.0,0.00015899,2]
[408690446,1774125040360,-502.46747394,0.00015899,2]
[408690447,1774125040369,-500.0,0.00015899,2]
[408690448,1774125040378,-500.0,0.00015899,2]
[408690449,1774125040387,-500.0,0.00015899,2]
[408690450,1774125040396,-500.0,0.00015899,2]
[408690451,1774125040405,-500.0,0.00015899,2]
[408690452,1774125040414,-500.0,0.00015899,2]
[408690453,1774125040423,-500.0,0.00015899,2]
[408690454,1774125040433,-500.0,0.00015899,2]
[408690455,1774125040442,-500.0,0.00015899,2]
[408690456,1774125040451,-500.0,0.00015899,2]
[408690457,1774125040460,-500.0,0.00015899,2]
[408690458,1774125040470,-500.0,0.00015899,2]
[408690459,1774125040479,-500.0,0.00015899,2]
[408690460,1774125040488,-500.0,0.00015899,2]
[408690461,1774125040499,-500.0,0.00015899,2]
[408690462,1774125040509,-500.0,0.00015899,2]
[408690463,1774125040519,-500.0,0.00015899,2]
[408690464,1774125040530,-500.0,0.00015899,2]
[408690465,1774125040541,-507.45233421,0.00015899,2]
[408690466,1774125040551,-500.0,0.00015899,2]
[408690467,1774125040561,-500.0,0.00015899,2]
[408690468,1774125040571,-500.0,0.00015899,2]
[408690469,1774125040580,-166.35654522,0.000159,2]
[408690470,1774125040591,-25000.0,0.000159,3]
[408690471,1774125040600,-10000.0,0.000159,2]
[408690472,1774125040609,-6755.18219438,0.000159,3]
[408690473,1774125040619,-5000.0,0.000159,2]
[408690474,1774125040628,-1581.3492164,0.000159,2]
[408690475,1774125040783,-1100.0,0.000159,5]
[408690476,1774125040794,-891.72446557,0.000159,2]
[408690477,1774125040803,-16886.86981156,0.000159,2]
[408690478,1774125040812,-2860.84764955,0.000159,2]
[408690479,1774125040822,-2000.0,0.000159,2]
[408690480,1774125040831,-3988.66058895,0.000159,2]
[408690481,1774125040840,-350.0,0.00015945,2]
[408690482,1774125040849,-400.0,0.0001597,2]
[408690483,1774125040859,-400.0,0.0001597,2]
[408690484,1774125040868,-451.54591552,0.0001597,2]
[408690485,1774125040878,-304.696003,0.00015971,2]
[408690486,1774125040887,-203.0,0.00015971,2]
[408690487,1774125040897,-11555.0,0.00015973,2]
[408690488,1774125040906,-500.0,0.00015973,2]
[408690489,1774125040916,-500.0,0.00015973,2]
[408690490,1774125040925,-500.0,0.00015973,2]
[408690491,1774125040935,-500.0,0.00015973,2]
[408690492,1774125040944,-283.16380875,0.00015973,2]
[408690493,1774125040953,-500.0,0.00015973,2]
[408690494,1774125040963,-207.63752376,0.00015973,2]
[408690495,1774125040972,-500.0,0.00015973,2]
[408690496,1774125040981,-357.55340388,0.00015973,2]
[408690497,1774125040990,-500.0,0.00015973,2]
[408690498,1774125040999,-500.0,0.00015973,2]
[408690499,1774125041008,-500.0,0.00015973,2]
[408690500,1774125041018,-500.0,0.00015973,2]
[408690501,1774125041027,-500.0,0.00015973,2]
[408690502,1774125041036,-500.0,0.00015973,2]
[408690503,1774125041045,-500.0,0.00015973,2]
[408690504,1774125041054,-500.0,0.00015973,2]
[408690505,1774125041063,-162.40231195,0.00015973,2]
[408690506,1774125041073,-412.99392051,0.00015973,2]
[408690507,1774125041082,-500.0,0.00015973,2]
[408690508,1774125041091,-517.68832593,0.00015973,2]
[408690509,1774125041101,-500.0,0.00015973,2]
[408690510,1774125041110,-500.0,0.00015973,2]
[408690511,1774125041119,-500.0,0.00015973,2]
[408690512,1774125041128,-500.0,0.00015973,2]
[408690513,1774125041138,-500.0,0.00015973,2]
[408690514,1774125041147,-500.0,0.00015973,2]
[408690515,1774125041158,-606.98804759,0.00015973,2]
[408690516,1774125041167,-500.0,0.00015973,2]
[408690517,1774125041176,-500.0,0.00015973,2]
[408690518,1774125041186,-500.0,0.00015973,2]
[408690519,1774125041195,-161.0,0.0001598,2]
[408690520,1774125041204,-5888.0,0.00015986,2]
[408690521,1774125041213,-500.0,0.0001599,2]
[408690522,1774125041223,-822.16797786,0.0001599,2]
[408690523,1774125041232,-822.16797786,0.0001599,2]
[408690524,1774125041241,-822.16797786,0.0001599,2]
[408690525,1774125041252,-53990.1198963,0.00015994,2]
[408690526,1774125041261,-735.1365973,0.00015994,2]
[408690527,1774125041271,-500.0,0.00015996,2]
[408690528,1774125041280,-500.0,0.00015996,2]
[408690529,1774125041289,-500.0,0.00015996,2]
[408690530,1774125041299,-500.0,0.00015996,2]
[408690531,1774125041308,-500.0,0.00015996,2]
[408690532,1774125041317,-500.0,0.00015996,2]
[408690533,1774125041327,-500.0,0.00015996,2]
[408690534,1774125041336,-500.0,0.00015996,2]
[408690535,1774125041346,-189.85256581,0.00015996,2]
[408690536,1774125041356,-500.0,0.00015996,2]
[408690537,1774125041365,-500.0,0.00015996,2]
[408690538,1774125041375,-500.0,0.00015996,2]
[408690539,1774125041386,-500.0,0.00015996,2]
[408690540,1774125041396,-500.0,0.00015996,2]
[408690541,1774125041407,-500.0,0.00015996,2]
[408690542,1774125041419,-500.0,0.00015996,2]
[408690543,1774125041428,-500.0,0.00015996,2]
[408690544,1774125041439,-500.0,0.00015996,2]
[408690545,1774125041448,-500.0,0.00015996,2]
[408690546,1774125041459,-500.0,0.00015996,2]
[408690547,1774125041468,-500.0,0.00015996,2]
[408690548,1774125041478,-500.0,0.00015996,2]
[408690549,1774125041487,-500.0,0.00015996,2]
[408690550,1774125041497,-500.0,0.00015996,2]
[408690551,1774125041506,-500.0,0.00015996,2]
[408690552,1774125041516,-500.0,0.00015996,2]
[408690553,1774125041525,-500.0,0.00015996,2]
[408690554,1774125041534,-500.0,0.00015996,2]
[408690555,1774125041544,-500.0,0.00015996,2]
[408690556,1774125041553,-500.0,0.00015996,2]
[408690557,1774125041563,-405.13912485,0.00015996,2]
[408690558,1774125041572,-500.0,0.00015996,2]
[408690559,1774125041581,-500.0,0.00015996,2]
[408690560,1774125041590,-500.0,0.00015996,2]
[408690561,1774125041600,-150.0,0.00015996,2]
[408690562,1774125041609,-500.0,0.00015996,2]
[408690563,1774125041619,-500.0,0.00015996,2]
[408690564,1774125041628,-500.0,0.00015996,2]
[408690565,1774125041637,-500.0,0.00015996,2]
[408690566,1774125041647,-500.0,0.00015996,2]
[408690567,1774125041657,-500.0,0.00015996,2]
[408690568,1774125041667,-500.0,0.00015996,2]
[408690569,1774125041676,-500.0,0.00015996,2]
[408690570,1774125041686,-500.0,0.00015996,2]
[408690571,1774125041695,-500.0,0.00015996,2]
[408690572,1774125041705,-500.0,0.00015996,2]
[408690573,1774125041714,-500.0,0.00015996,2]
[408690574,1774125041725,-500.0,0.00015996,2]
[408690575,1774125041734,-500.0,0.00015996,2]
[408690576,1774125041744,-314.39578779,0.00015996,2]
[408690577,1774125041753,-538.0,0.00015996,2]
[408690578,1774125041764,-500.0,0.00015996,2]
[408690579,1774125041773,-500.0,0.00015996,2]
[408690580,1774125041783,-150.0,0.00015996,2]
[408690581,1774125041792,-500.0,0.00015996,2]
[408690582,1774125041801,-500.0,0.00015996,2]
[408690583,1774125041811,-500.0,0.00015996,2]
[408690584,1774125041820,-500.0,0.00015996,2]
[408690585,1774125041829,-500.0,0.00015996,2]
[408690586,1774125041838,-208.74190005,0.00015996,2]
[408690587,1774125041848,-500.0,0.00015996,2]
[408690588,1774125041857,-500.0,0.00015996,2]
[408690589,1774125041867,-500.0,0.00015996,2]
[408690590,1774125041877,-500.0,0.00015996,2]
[408690591,1774125041886,-500.0,0.00015996,2]
[408690592,1774125041895,-643.24035249,0.00015996,2]
[408690593,1774125041905,-151.0,0.00015997,2]
[408690594,1774125041914,-151.0,0.00015997,2]
[408690595,1774125041923,-666.0,0.00015999,2]
[408690596,1774125041933,-500.0,0.00015999,2]
[408690597,1774125041942,-500.0,0.00015999,2]
[408690598,1774125041952,-500.0,0.00015999,2]
[408690599,1774125041962,-500.0,0.00015999,2]
[408690600,1774125041971,-500.0,0.00015999,2]
[408690601,1774125041980,-500.0,0.00015999,2]
[408690602,1774125041989,-500.0,0.00015999,2]
[408690603,1774125041999,-500.0,0.00015999,2]
[408690604,1774125042008,-500.0,0.00015999,2]
[408690605,1774125042018,-500.0,0.00015999,2]
[408690606,1774125042028,-500.0,0.00015999,2]
[408690607,1774125042037,-500.0,0.00015999,2]
[408690608,1774125042047,-500.0,0.00015999,2]
[408690609,1774125042057,-500.0,0.00015999,2]
[408690610,1774125042066,-500.0,0.00015999,2]
[408690611,1774125042076,-500.82957501,0.00015999,2]
[408690612,1774125042086,-491.51644773,0.00015999,2]
[408690613,1774125042095,-500.0,0.00015999,2]
[408690614,1774125042104,-500.0,0.00015999,2]
[408690615,1774125042114,-500.0,0.00015999,2]
[408690616,1774125042123,-500.0,0.00015999,2]
[408690617,1774125042133,-500.0,0.00015999,2]
[408690618,1774125042143,-500.0,0.00015999,2]
[408690619,1774125042153,-500.0,0.00015999,2]
[408690620,1774125042166,-500.0,0.00015999,2]
[408690621,1774125042175,-500.0,0.00015999,2]
[408690622,1774125042185,-500.0,0.00015999,2]
[408690623,1774125042194,-500.0,0.00015999,2]
[408690624,1774125042207,-500.0,0.00015999,2]
[408690625,1774125042217,-500.0,0.00015999,2]
[408690626,1774125042227,-500.0,0.00015999,2]
[408690627,1774125042237,-500.0,0.00015999,2]
[408690628,1774125042247,-500.0,0.00015999,2]
[408690629,1774125042257,-449.6,0.00015999,2]
[408690630,1774125042267,-155.0,0.00015999,2]
[408690631,1774125042276,-500.0,0.00015999,2]
[408690632,1774125042285,-500.0,0.00015999,2]
[408690633,1774125042295,-500.0,0.00015999,2]
[408690634,1774125042306,-500.0,0.00015999,2]
[408690635,1774125042315,-500.0,0.00015999,2]
[408690636,1774125042326,-500.0,0.00015999,2]
[408690637,1774125042335,-500.0,0.00015999,2]
[408690638,1774125042344,-500.0,0.00015999,2]
[408690639,1774125042354,-500.0,0.00015999,2]
[408690640,1774125042364,-500.0,0.00015999,2]
[408690641,1774125042374,-500.0,0.00015999,2]
[408690642,1774125042383,-500.0,0.00015999,2]
[408690643,1774125042392,-500.0,0.00015999,2]
[408690644,1774125042403,-500.0,0.00015999,2]
[408690645,1774125042413,-500.0,0.00015999,2]
[408690646,1774125042423,-500.0,0.00015999,2]
[408690647,1774125042433,-500.0,0.00015999,2]
[408690648,1774125042443,-500.0,0.00015999,2]
[408690649,1774125042452,-500.0,0.00015999,2]
[408690650,1774125042462,-500.0,0.00015999,2]
[408690651,1774125042472,-500.0,0.00015999,2]
[408690652,1774125042481,-500.0,0.00015999,2]
[408690653,1774125042491,-500.0,0.00015999,2]
[408690654,1774125042500,-500.0,0.00015999,2]
[408690655,1774125042510,-631.92237026,0.00015999,2]
[408690656,1774125042519,-500.0,0.00015999,2]
[408690657,1774125042529,-500.0,0.00015999,2]
[408690658,1774125042538,-500.0,0.00015999,2]
[408690659,1774125042548,-500.0,0.00015999,2]
[408690660,1774125042559,-500.0,0.00015999,2]
[408690661,1774125042568,-577.0574034,0.00015999,2]
[408690662,1774125042578,-500.0,0.00015999,2]
[408690663,1774125042587,-500.0,0.00015999,2]
[408690664,1774125042597,-500.0,0.00015999,2]
[408690665,1774125042606,-500.0,0.00015999,2]
[408690666,1774125042615,-600.49565647,0.00015999,2]
[408690668,1774125042624,-500.0,0.00015999,2]
[408690670,1774125042633,-500.0,0.00015999,2]
[408690671,1774125042643,-500.0,0.00015999,2]
[408690672,1774125042653,-500.0,0.00015999,2]
[408690673,1774125042663,-500.0,0.00015999,2]
[408690674,1774125042672,-500.0,0.00015999,2]
[408690675,1774125042682,-500.0,0.00015999,2]
[408690676,1774125042691,-500.0,0.00015999,2]
[408690677,1774125042701,-500.0,0.00015999,2]
[408690678,1774125042711,-500.0,0.00015999,2]
[408690679,1774125042721,-500.0,0.00015999,2]
[408690680,1774125042730,-500.0,0.00015999,2]
[408690681,1774125042741,-500.0,0.00015999,2]
[408690682,1774125042750,-500.0,0.00015999,2]
[408690683,1774125042760,-500.0,0.00015999,2]
[408690684,1774125042770,-500.0,0.00015999,2]
[408690685,1774125042779,-427.09763699,0.00015999,2]
[408690687,1774125042789,-500.0,0.00015999,2]
[408690689,1774125042798,-500.0,0.00015999,2]
[408690690,1774125042808,-500.0,0.00015999,2]
[408690691,1774125042817,-500.0,0.00015999,2]
[408690692,1774125042827,-265.99573624,0.00015999,2]
[408690693,1774125042837,-500.0,0.00015999,2]
[408690694,1774125042847,-500.0,0.00015999,2]
[408690695,1774125042857,-500.0,0.00015999,2]
[408690697,1774125042866,-177.63188648,0.00015999,2]
[408690700,1774125042876,-500.0,0.00015999,2]
[408690702,1774125042885,-500.0,0.00015999,2]
[408690704,1774125042895,-500.0,0.00015999,2]
[408690706,1774125042905,-500.0,0.00015999,2]
[408690708,1774125042915,-500.0,0.00015999,2]
[408690710,1774125042925,-500.0,0.00015999,2]
[408690712,1774125042935,-500.0,0.00015999,2]
[408690713,1774125042944,-500.0,0.00015999,2]
[408690714,1774125042954,-500.0,0.00015999,2]
[408690715,1774125042964,-500.0,0.00015999,2]
[408690716,1774125042973,-619.28774558,0.00015999,2]
[408690717,1774125042982,-500.0,0.00015999,2]
[408690718,1774125042991,-500.0,0.00015999,2]
[408690719,1774125043001,-500.0,0.00015999,2]
[408690720,1774125043010,-500.0,0.00015999,2]
[408690721,1774125043020,-500.0,0.00015999,2]
[408690722,1774125043029,-500.0,0.00015999,2]
[408690723,1774125043038,-500.0,0.00015999,2]
[408690724,1774125043048,-500.0,0.00015999,2]
[408690725,1774125043057,-500.0,0.00015999,2]
[408690726,1774125043067,-500.0,0.00015999,2]
[408690727,1774125043076,-500.0,0.00015999,2]
[408690728,1774125043085,-575.72205719,0.00015999,2]
[408690729,1774125043094,-500.0,0.00015999,2]
[408690730,1774125043104,-500.0,0.00015999,2]
[408690731,1774125043113,-500.0,0.00015999,2]
[408690732,1774125043122,-500.0,0.00015999,2]
[408690733,1774125043132,-500.0,0.00015999,2]
[408690734,1774125043141,-591.23745448,0.00015999,2]
[408690735,1774125043151,-500.0,0.00015999,2]
[408690736,1774125043160,-500.0,0.00015999,2]
[408690737,1774125043169,-410.66648104,0.00015999,2]
[408690738,1774125043178,-536.76730924,0.00015999,2]
[408690739,1774125043188,-2500.0,0.00015999,2]
[408690740,1774125043198,-2500.0,0.00015999,2]
[408690741,1774125043207,-2500.0,0.00015999,2]
[408690742,1774125043216,-251.78895923,0.00015999,2]
[408690743,1774125043225,-500.0,0.00015999,2]
[408690744,1774125043235,-500.0,0.00015999,2]
[408690745,1774125043244,-446.5078642,0.00015999,2]
[408690746,1774125043253,-500.0,0.00015999,2]
[408690747,1774125043263,-500.0,0.00015999,2]
[408690748,1774125043271,-500.0,0.00015999,2]
[408690749,1774125043281,-500.0,0.00015999,2]
[408690750,1774125043290,-500.0,0.00015999,2]
[408690751,1774125043299,-647.66508555,0.00015999,2]
[408690752,1774125043308,-500.0,0.00015999,2]
[408690753,1774125043318,-500.0,0.00015999,2]
[408690754,1774125043328,-226.07509965,0.00015999,2]
[408690755,1774125043337,-2670.0,0.00016,5]
[408690756,1774125043346,-2015545.74397446,0.00016,2]
[408690757,1774125043356,-434848.954264,0.00016,2]
[408690758,1774125043365,-49009.05235291,0.00016,2]
[408690759,1774125043374,-1000.0,0.00016,2]
[408690760,1774125043384,-1000.0,0.00016,2]
[408690761,1774125043393,-1000.0,0.00016,2]
[408690762,1774125043402,-1000.0,0.00016,2]
[408690763,1774125043411,-1000.0,0.00016,2]
[408690764,1774125043420,-1000.0,0.00016,2]
[408690765,1774125043429,-1000.0,0.00016,2]
[408690766,1774125043439,-1000.0,0.00016,2]
[408690767,1774125043448,-1000.0,0.00016,2]
[408690768,1774125043457,-1000.0,0.00016,2]
[408690769,1774125043466,-1000.0,0.00016,2]
[408690770,1774125043475,-1000.0,0.00016,2]